Cogmind - Beta 14 @@@ ROGUE MODE // 2024.08.24 @ 15:47:06 Player: human Result: Destroyed by G-47 Trooper with Particle Gun Performance ------------- Evolutions (3) 1500 Regions Visited (5) 1000 Robots Destroyed (28) 140 Value Destroyed (800) 800 Prototype IDs (3) 60 Alien Tech Used (0) 0 Bonus (-14) -14 TOTAL SCORE: 3486 Bonus ------- Friendly Fire -14 Cogmind --------- Core Integrity 0/700 Matter 225/300 Energy 34/100 System Corruption 0% Temperature Cool (9) Movement Core (50) Location -7/Storage Parts ------- > --- POWER (2) -------- (None) > --- PROPULSION (4) --- Improved Cesium-ion Thruster Improved Cesium-ion Thruster Improved Cesium-ion Thruster > --- UTILITY (5) ------ Signal Interpreter Hacking Suite System Shield > --- WEAPON (2) ------- Katana > --- INVENTORY (5) ---- Light Treads Improved Cesium-ion Thruster Improved EM Pulse Cannon Flak Gun Improved Datajack Peak State ------------ > --- POWER ------------ Light Nuclear Core > --- PROPULSION ------- Armored Huge Wheel Armored Huge Wheel > --- UTILITY ---------- Weight Redist. System Transmission Jammer Hacking Suite Hacking Suite System Shield > --- WEAPON ----------- Improved EM Pulse Cannon Heavy Ion Cannon > --- INVENTORY -------- Signal Interpreter Precision Shock Rifle Improved Datajack Katana [Rating: 43] Favorites ----------- Power Improved Ion Engine Engine Improved Ion Engine Power Core Light Nuclear Core Propulsion Wheel Treads Medium Treads Wheel Wheel Flight Unit VTOL Module Utility Hacking Suite Device Weight Redist. System Storage Small Storage Unit Processor Targeting Computer Hackware Hacking Suite Protection Hardened Medium Armor Plating Weapon Katana Energy Gun Heavy EM Pulse Gun Energy Cannon Light EM Pulse Cannon Ballistic Gun Minigun Launcher Grenade Launcher Impact Weapon Mace Slashing Weapon Katana Build | -11 -10 -9 -8 -7 -7 ------- Run | Yrd Mat Mat Mat Fac Sto Slots Evolved 6 | . . 2 2 2 . Power 1 | . . . . 1 . Propulsion 2 | . . . 1 1 . Utility 3 | . . 2 1 . . Weapon . | . . . . . . Parts Attached 64 | 6 5 10 13 19 11 Power 4 | 1 1 . . 2 . Engine 3 | 1 1 . . 1 . Core 1 | . . . . 1 . Reactor . | . . . . . . Propulsion 18 | 2 . 2 4 7 3 Treads 1 | . . . . 1 . Leg . | . . . . . . Wheel 10 | 2 . 1 3 4 . Hover . | . . . . . . Flight 7 | . . 1 1 2 3 Utility 18 | 1 . 4 5 5 3 Device 8 | . . 1 3 2 2 Storage 1 | 1 . . . . . Processor 2 | . . . 1 . 1 Hackware 4 | . . 1 . 3 . Protection 3 | . . 2 1 . . Artifact . | . . . . . . Weapon 24 | 2 4 4 4 5 5 Energy Gun 5 | 2 . 1 . 1 1 Energy Cannon 4 | . . 1 . 2 1 Ballistic Gun 9 | . 2 1 3 1 2 Ballistic Cannon . | . . . . . . Launcher 2 | . 2 . . . . Special Weapon . | . . . . . . Impact Weapon 1 | . . 1 . . . Slashing Weapon 3 | . . . 1 1 1 Piercing Weapon . | . . . . . . Special Melee Weapon . | . . . . . . Unidentified Prototypes 3 | . . 1 . 1 1 Parts Lost 29 | . 1 1 9 11 7 Power 3 | . . . 1 2 . Propulsion 13 | . . 1 4 5 3 Utility 7 | . . . 2 2 3 Weapon 6 | . 1 . 2 2 1 Highest Loss Streak 5 | . 1 1 4 3 5 To Critical Strikes . | . . . . . . Average Slot Usage (%) 74 | . 77 94 83 67 41 Engine 6 | . 14 11 5 2 . Treads 1 | . . . . 3 . Wheel 13 | . 28 18 16 9 1 Flight 1 | . . . 2 . 5 Device 9 | . . 10 10 10 10 Storage 5 | . 14 11 7 . . Processor 1 | . . . 4 2 2 Hackware 12 | . . 7 9 22 15 Protection 5 | . . 12 10 . . Energy Gun 1 | . 4 2 2 . . Energy Cannon 3 | . . 10 2 1 . Ballistic Gun 5 | . 11 6 7 2 3 Slashing Weapon 3 | . . . 4 6 1 Peak Build Rating 43 | 6 8 21 21 43 34 Average Rating 19 | 3 6 16 17 28 18 On Entrance 12 | . 6 8 16 14 28 Naked Turns . | . . . . . . Heaviest Build 36 | 10 15 36 36 21 10 Greatest Support 36 | 26 26 26 36 34 18 Greatest Overweight (x) 3 | . . 1 3 3 1 Average Overweight (x) . | . . . . . . Largest Inventory Capacity 8 | 8 8 8 8 5 5 Average Capacity 6 | 6 8 8 7 5 5 Most Carried 8 | 5 8 8 8 5 5 Average Carried 5 | 1 4 7 5 4 4 Final Capacity 8 | 8 8 8 5 5 5 Final Carried 8 | 1 8 8 5 5 5 Class Distribution -------------------- 57% | Mutant 42% | Hacker-Mutant Dominant Class ---------------- Mutant | -10/Materials Mutant | -9/Materials Mutant | -8/Materials Hacker-Mutant | -7/Factory Hacker-Mutant | -7/Storage Resources | -11 -10 -9 -8 -7 -7 ----------- Run | Yrd Mat Mat Mat Fac Sto Matter Collected 906 | 202 162 141 188 164 49 Remotely . | . . . . . . Salvage Created 870 | . 42 203 293 271 61 Parts 64 | . 5 18 21 16 4 Haulers Intercepted . | . . . . . . Recyclers Shooed 1 | . 1 . . . . Parts Field Recycled . | . . . . . . Retrieved Matter . | . . . . . . Parts Self-Destructed . | . . . . . . Prevented . | . . . . . . Kills | -11 -10 -9 -8 -7 -7 ------- Run | Yrd Mat Mat Mat Fac Sto Combat Hostiles Destroyed 22 | . 4 2 8 7 1 Melee 8 | . . . 2 6 . Guns 9 | . 2 2 4 1 . Cannons 3 | . . . 2 . 1 AOE 2 | . 2 . . . . Classes Destroyed 6 | . 2 2 2 . . Operator 1 | . . 1 . . . Watcher 5 | . . 3 2 . . Swarmer 11 | . 3 . 5 3 . Grunt 7 | . 1 2 1 3 . Sentry 2 | . . . 1 . 1 Hunter 2 | . . . 1 1 . Best Kill Streak 4 | . 4 3 4 2 1 Combat Bots Only 4 | . 4 1 3 2 1 Max Kills in Single Turn 2 | . 2 1 1 1 1 Gunslinging . | . . . . . . Exploded 2 | . 2 . . . . Melee 1 | . . . 1 1 . Uniques/NPCs Destroyed . | . . . . . . Combat | -11 -10 -9 -8 -7 -7 -------- Run | Yrd Mat Mat Mat Fac Sto Hostile Shots Fired 525 | . 22 22 159 190 132 Missed 185 | . 1 9 61 57 57 Damage Taken 4050 | . 197 174 1285 1570 824 Core 1228 | . 38 22 462 323 383 Absorbed by Shields . | . . . . . . Regen/Repaired (Parts) 19 | . . . . . 19 Core Remaining (%) 73 | 100 84 94 16 . . Volleys Fired 66 | . 15 12 24 10 5 Largest 2 | . 2 2 2 2 1 Hottest 134 | . 53 101 101 134 65 Shots Fired 98 | . 17 23 42 11 5 Gun 71 | . 15 11 35 7 3 Cannon 25 | . . 12 7 4 2 Launcher 2 | . 2 . . . . Special . | . . . . . . Kinetic 55 | . 15 4 27 6 3 Thermal 5 | . . . . 3 2 Explosive 2 | . 2 . . . . Electromagnetic 36 | . . 19 15 2 . Robot Hit Streak 10 | . 4 10 7 6 7 Robot Miss Streak 7 | . 7 2 3 1 3 Penetration Max 1 | . . . . 1 . Secondary Targets . | . . . . . . Shots Hit Robots 89 | . 9 15 34 23 8 Core Hits 44 | . 6 7 16 11 4 Critical Kills . | . . . . . . Critical Parts Destroyed 1 | . . 1 . . . Critical Strikes 3 | . . 1 . 2 . Smash 1 | . . 1 . . . Sever 2 | . . . . 2 . Melee Attacks 54 | . . 9 19 21 5 Impact 9 | . . 9 . . . Slashing 45 | . . . 19 21 5 Piercing . | . . . . . . Sneak Attacks 1 | . . . . 1 . Combat Hostiles 1 | . . . . 1 . Follow-up Attacks . | . . . . . . Damage Inflicted 2270 | . 308 384 651 734 193 Guns 706 | . 154 61 311 138 42 Cannons 545 | . . 256 148 86 55 Explosions 154 | . 154 . . . . Melee 855 | . . 67 182 510 96 Ramming 10 | . . . 10 . . Kinetic 544 | . 154 . 231 117 42 Thermal 109 | . . . . 54 55 Explosive 154 | . 154 . . . . Electromagnetic 598 | . . 317 228 53 . Impact 67 | . . 67 . . . Slashing 788 | . . . 182 510 96 Piercing . | . . . . . . Highest Corruption 4 | . . 4 2 . . Average Corruption 3 | . . 4 2 . . Corruption Purged . | . . . . . . Corruption Blocked . | . . . . . . Effects 15 | . . 12 3 . . Message Errors 4 | . . 3 1 . . Matter Fused 3 | . . 3 . . . Heat Flow Errors 1 | . . 1 . . . Energy Discharges 1 | . . 1 . . . Data Loss (minor) 3 | . . 2 1 . . Data Loss (major) 1 | . . 1 . . . Misfires 1 | . . . 1 . . Alerts 1 | . . 1 . . . Overload Shots . | . . . . . . Overflow Damage 65 | . 8 44 10 3 . Projectiles 1 | . . . 1 . . Explosions 8 | . 8 . . . . Melee 56 | . . 44 9 3 . Knockbacks 1 | . . 1 . . . Impact 1 | . . 1 . . . Kinetic . | . . . . . . Secondary . | . . . . . . Self-Inflicted Damage 10 | . . . 10 . . Shots . | . . . . . . Rammed . | . . . . . . Targets Rammed . | . . . . . . Kicked . | . . . . . . Crushed . | . . . . . . Highest Temperature 244 | . 14 244 176 80 10 Average Temperature 77 | . 11 97 70 41 9 Received Heat Transfer 1239 | . 48 96 135 657 303 Siege Activations . | . . . . . . Robots Corrupted . | . . . . . . Combat Hostiles . | . . . . . . Parts Fried 1 | . . 1 . . . Impact Corruptions 1 | . . 1 . . . Robots Melted . | . . . . . . Combat Hostiles . | . . . . . . Parts Melted . | . . . . . . Heat Transferred 148 | . . . . 74 74 Parts Sabotaged . | . . . . . . Parts Stolen . | . . . . . . Parts Stripped . | . . . . . . Power Chain Reactions . | . . . . . . Alert | -11 -10 -9 -8 -7 -7 ------- Run | Yrd Mat Mat Mat Fac Sto Peak Influence 501 | . 121 250 501 338 105 Initial 223 | . . 50 20 223 83 Average 150 | . 58 132 191 238 62 Maximum Alert Level 2 | . . 1 2 1 . Low Security (%) 65 | 100 100 76 64 18 100 Level 1 33 | . . 23 27 81 . Level 2 1 | . . . 8 . . Level 3 . | . . . . . . Level 4 . | . . . . . . Level 5 . | . . . . . . High Security . | . . . . . . Max Security . | . . . . . . Squads Dispatched 13 | . . 1 5 5 2 Investigation 5 | . . . 2 3 . Extermination . | . . . . . . Reinforcement 8 | . . 1 3 2 2 Assault . | . . . . . . Garrison . | . . . . . . Intercept . | . . . . . . Searches Triggered . | . . . . . . Construction Impeded . | . . . . . . Haulers Reinforced . | . . . . . . Active Scanning Responses . | . . . . . . Cargo Convoy Interrupts . | . . . . . . Stealth | -11 -10 -9 -8 -7 -7 --------- Run | Yrd Mat Mat Mat Fac Sto Distress Signals 4 | . . . 4 . . Communications Jammed 40 | . . . . 40 . Distress Signals 40 | . . . . 40 . Times Spotted 108 | . 7 11 45 21 24 Peak Tracking Total 16 | . 3 5 16 7 15 Tactical Retreats 18 | . . 3 5 7 3 Traps | -11 -10 -9 -8 -7 -7 ------- Run | Yrd Mat Mat Mat Fac Sto Traps Triggered . | . . . . . . Indirectly . | . . . . . . Trap Hack Attempts . | . . . . . . Triggered . | . . . . . . Disarmed . | . . . . . . Reprogrammed . | . . . . . . Reused . | . . . . . . Traps Extracted . | . . . . . . Installed . | . . . . . . Triggered . | . . . . . . Machines | -11 -10 -9 -8 -7 -7 ---------- Run | Yrd Mat Mat Mat Fac Sto Machines Disabled 1 | . . . 1 . . Max in Single Turn 1 | . . . 1 . . Garrison Access 1 | . . . . 1 . Machines Repaired . | . . . . . . Machines Dismantled . | . . . . . . Machines Sabotaged . | . . . . . . Overloaded Fab Kills . | . . . . . . Hacking | -11 -10 -9 -8 -7 -7 --------- Run | Yrd Mat Mat Mat Fac Sto Machines Accessed 30 | . 3 6 6 9 6 Terminals 21 | . 2 6 3 6 4 Fabricators 2 | . . . . 2 . Repair Stations 1 | . . . . . 1 Recycling Units 3 | . 1 . 1 . 1 Scanalyzers 2 | . . . 2 . . Garrison Access 1 | . . . . 1 . Total Hacks 82 | . 10 16 17 25 14 Successful 47 | . 3 9 10 18 7 Failed 35 | . 7 7 7 7 7 Catastrophic 3 | . 1 . 2 . . Database Lockouts . | . . . . . . Manual 42 | . 2 13 8 14 5 Terminals 60 | . 6 16 10 18 10 Fabricators 4 | . . . . 4 . Repair Stations 2 | . . . . . 2 Recycling Units 7 | . 4 . 1 . 2 Scanalyzers 6 | . . . 6 . . Garrison Access 3 | . . . . 3 . Terminal Hacks 17 | . 2 5 1 6 3 Robot Analysis 2 | . . . . 2 . Open Door 2 | . . . . . 2 Level Access Points 1 | . . 1 . . . Emergency Access Points 1 | . 1 . . . . Terminal Index 2 | . . 1 . 1 . Fabricator Index 1 | . . . . 1 . Scanalyzer Index 2 | . . 1 1 . . Alert Level 3 | . 1 . . 1 1 Unreport Threat 1 | . . . . 1 . Investigation Status 1 | . . 1 . . . Registered Components 1 | . . 1 . . . Fabricator Hacks 4 | . . . . 4 . Load Schematic 2 | . . . . 2 . Build 2 | . . . . 2 . Repair Station Hacks 2 | . . . . . 2 Scan Component 1 | . . . . . 1 Repair 1 | . . . . . 1 Recycling Unit Hacks 3 | . 1 . 1 . 1 Report Inventory 1 | . 1 . . . . Retrieve Matter 1 | . . . . . 1 Retrieve Components 1 | . . . 1 . . Scanalyzer 6 | . . . 6 . . Insert Component 3 | . . . 3 . . Analyze 3 | . . . 3 . . Garrison Access Hacks 1 | . . . . 1 . Seal Access 1 | . . . . 1 . Unauthorized Hacks 14 | . . 4 2 7 1 Terminals 14 | . . 4 2 7 1 Assimilate 4 | . . . 1 3 . Botnet 9 | . . 4 1 3 1 Operators 1 | . . . . 1 . Fabricators . | . . . . . . Repair Stations . | . . . . . . Recycling Units . | . . . . . . Scanalyzers . | . . . . . . Garrison Access . | . . . . . . Data Cores Recovered 1 | . . 1 . . . Used 1 | . . 1 . . . Hacking Detections 25 | . 2 6 4 9 4 Full Trace Events 4 | . . . 1 3 . Feedback Events . | . . . . . . Feedback Blocked 1 | . . . . 1 . Robot Schematics Acquired . | . . . . . . Robots Built . | . . . . . . Authchips . | . . . . . . Time . | . . . . . . Total Robot Build Rating . | . . . . . . Part Schematics Acquired 3 | . . . 3 . . Parts Built 2 | . . . . 2 . Authchips . | . . . . . . Time 109 | . . . . 109 . Total Part Build Rating 6 | . . . . 6 . Parts Repaired 1 | . . . . . 1 Time 16 | . . . . . 16 Parts Recycled . | . . . . . . Recycled Matter . | . . . . . . Retrieved Matter . | . . . . . . Retrieved Components 6 | . . . 6 . . Parts Scanalyzed 3 | . . . 3 . . Part Schematics Acquired 3 | . . . 3 . . Parts Damaged . | . . . . . . Bothacking | -11 -10 -9 -8 -7 -7 ------------ Run | Yrd Mat Mat Mat Fac Sto Used RIF Installer . | . . . . . . Robots Hacked . | . . . . . . Non-combat . | . . . . . . Combat . | . . . . . . Robot Hacks Applied . | . . . . . . Relay Couplers Released . | . . . . . . Fabnet Peak Effective % . | . . . . . . Robots Rewired . | . . . . . . Allies Hacked . | . . . . . . Hacks Repelled . | . . . . . . Allies | -11 -10 -9 -8 -7 -7 -------- Run | Yrd Mat Mat Mat Fac Sto Total Allies 2 | . . . 1 1 . Largest Group 1 | . . . 1 1 . Highest-Rated Group 10 | . . . 10 10 . Highest-Rated Ally 10 | . . . 10 10 . Total Orders 10 | . . . . . 10 ROAM 2 | . . . . . 2 EXPLORE 8 | . . . . . 8 Ally Attacks . | . . . . . . Total Damage . | . . . . . . Kills . | . . . . . . Allies Corrupted 1 | . . . . . 1 Allies Melted . | . . . . . . Intel | -11 -10 -9 -8 -7 -7 ------- Run | Yrd Mat Mat Mat Fac Sto Robot Analysis Total 2 | . . . . 2 . Derelict Logs Recovered . | . . . . . . Drone Launches 16 | . . . . . 16 Drone Recoveries 2 | . . . . . 2 Exploration | -11 -10 -9 -8 -7 -7 ------------- Run | Yrd Mat Mat Mat Fac Sto Turns Passed 1713 | 43 190 403 331 471 275 Spaces Moved 1586 | 42 156 287 275 542 284 Core 738 | 19 . . 50 458 211 Treads . | . . . . . . Legs . | . . . . . . Wheels 687 | 23 156 287 141 80 . Hover . | . . . . . . Flight 161 | . . . 84 4 73 Fastest Speed 29 | 50 90 90 40 42 29 Average Speed 74 | 71 90 106 69 63 61 Slowest Speed 200 | 90 90 115 200 200 100 Overloaded Moves . | . . . . . . Propulsion Burnouts . | . . . . . . Robots Hopped . | . . . . . . Cave-ins Triggered . | . . . . . . Exploration Rate (%) 30 | 3 36 34 32 19 60 Regions Visited 5 Branch Regions 1 Pre-discovered Areas . | . . . . . . Known Exits Taken 1 | . . 1 . . . Unknown Exits Taken 4 | 1 1 . 1 1 . Scrap Searched . | . . . . . . Spaces Dug 15 | . . 6 7 2 . Terrain Destroyed 29 | . 14 6 7 2 . Melee 15 | . . 6 7 2 . Projectile . | . . . . . . AOE 14 | . 14 . . . . Terrain Rammed 1 | . . . 1 . . Walls Destroyed . | . . . . . . Machines Disabled . | . . . . . . Actions | -11 -10 -9 -8 -7 -7 --------- Run | Yrd Mat Mat Mat Fac Sto Total 1926 | 54 188 345 347 622 370 Wait 95 | . . 19 4 19 53 Move 1581 | 41 155 286 274 541 284 Hop . | . . . . . . Pick Up 39 | 7 10 4 6 10 2 Fast Attach 19 | . . 5 3 5 6 Attach 29 | 6 2 1 7 9 4 Detach 4 | . . . 1 1 2 Swap 16 | . 3 4 3 5 1 Drop 15 | . 3 5 5 1 1 Fire 66 | . 15 12 24 10 5 Melee 54 | . . 9 19 21 5 Ram 1 | . . . 1 . . Kick . | . . . . . . Crush . | . . . . . . Escape Stasis . | . . . . . . Rewire . | . . . . . . Trap . | . . . . . . Miscellaneous 7 | . . . . . 7 Route ------- -11/Scrapyard -10/Materials -9/Materials (discovered 4 exits: *Mat x3 / [*Min]) -8/Materials -7/Factory -7/Storage History --------- Turn | Location | Event 4 | -11/Scrapyard | Discovered new exit (range 16) 44 | -11/Scrapyard | Entered Materials 227 | -10/Materials | Discovered new exit (range 4) 234 | -10/Materials | Entered another Materials area 234 | -9/Materials | Evolved 2 slots: Utility x2 311 | -9/Materials | Build established: Mutant 380 | -9/Materials | Identified exit to Materials 396 | -9/Materials | Discovered new exit (range 13) 637 | -9/Materials | Entered another Materials area 637 | -8/Materials | Evolved 2 slots: Propulsion x1, Utility x1 773 | -8/Materials | Lost 3 parts (1n2w) 909 | -8/Materials | Lost 4 parts (1p2n1u) 960 | -8/Materials | Core integrity fell below 50% 961 | -8/Materials | Discovered new exit (range 14) 968 | -8/Materials | Entered Factory 968 | -7/Factory | Evolved 2 slots: Power x1, Propulsion x1 1138 | -7/Factory | Fabricated Hacking Suite? 1198 | -7/Factory | Lost 3 parts (1p2n) 1284 | -7/Factory | Build established: Hacker-Mutant 1410 | -7/Factory | Fabricated Hacking Suite? 1420 | -7/Factory | Discovered new exit (range 8) 1439 | -7/Factory | Entered Storage 1460 | -7/Storage | Repaired Weight Redist. System 1467 | -7/Storage | Lost 3 parts (1n1u1w) 1531 | -7/Storage | Lost 5 parts (3n1u1w) 1610 | -7/Storage | Core integrity fell below 50% 1676 | -7/Storage | Lost 14 allies 1676 | -7/Storage | Core integrity fell below 20% 1714 | -7/Storage | Destroyed by G-47 Trooper with Particle Gun Last Messages --------------- FAILED. SECURING TERMINAL." 01652_ Penetrated by Slug. 01659_ Slug penetrates Wall. 01660_ ALERT: Hostiles spotted, dispatching reinforcements to Terminal S010. 01662_ Penetrated by Slug. 01667_ U-05 Engineer builds a Door. 01667_ Drone Bay destroyed. 01668_ Slug penetrates Wall. 01673_ Slug penetrates A-02 Transporter. 01673_ A-02 Transporter destroyed. 01673_ Weight Redist. System destroyed. 01688_ Connecting with Door Terminal... >>Open(Door) Sealed Heavy Doors opened. 01689_ Acquired Prototype Flight Unit. 01689_ Identified Imp. Cesium-ion Thruster. 01691_ Acquired Imp. Cesium-ion Thruster. 01704_ Slug penetrates Wall. 01708_ K-01 Serf collects debris. Map ----- +----------------------------------------------------+ | ??????# #????????????????????????????????????? | | ####### #????????????????????????????????????? | | !!! # + ####?????????????????????????????????? | | # """#?????????????????????????????????? | | !!!!# # Y"#?????????????????????????????????? | | #####T# """#?????????????????????????????????? | | ????### ####?????????????????????????????????? | | ??????# ###########??????????????????????????? | | ####### % #??????????????????????????? | | # % #??????????????????????????? | | """ # #??????????????????????????? | | ??"" # ##"T##### #??????????????????????????? | | ???""%+ ##""#???? ???????????????????????????? | | "???" # #####???? ???????????????????????????? | | ""??" # #???????? ???????????????????????????? | | """" # #???????# #??????????????????????????? | | # #???????# #??????????????????????????? | | ####### #???????# #??????????????????????????? | | ??????#####???????# #??????????????????????????? | | ??????????????????# #??????????????????????????? | | ??????????????????# #??????????????????????????? | | ??????????????????# #?#####????????????????????? | | ??????????????????# #?#= #????????????????????? | | ??????????????????# #?# k #????????????????????? | | ??????????????????# #?# ##???????????????????? | | ????###+###???????# #?# @T#???????????????????? | | ????# ######### ####g######+???????????????? | | ????# " ggg ????????? | | ????+ "T gY ^ ????????? | | ????# ????????? | | ????# ####+#########+#########/###?????????? | | ????## ##? ???????????????????????????????? | | ?????# ## ?"" ???????????????????????????????? | | ?????# ##????""??????????????????????????????? | | ?????# #?????????????????????????????????????? | | ?????# #?????????????????????????????????????? | | ?????# #?????????????????????????????????????? | | ###### ## "???????????????????????????????? | | =** / #???????????????????????????? | | !*%*! ## #???????????????????????????? | | **! #??########???????????????????????????? | | #######/##?????????????????????????????????????? | | ?????? ?????????????????????????????????????? | | ??????] ^ ????????????????????????????????????? | | ?????? "??????????????????????????????????? | | ?????? ""?????????????????????????????????? | | ?????"" """ R?????????????????????????????????? | | ?????"" """ ""?????????????????????????????????? | | ??????" """ ###????????????????????????????????? | | ??????? ??????????????????????????????????????? | +----------------------------------------------------+ Best States ------------- Heat Dissipation 34 Energy Generation 14 Energy Capacity 265 Matter Stores 300 Matter Capacity 300 Sight Range 16 Terrain Scan Density 10 Jamming Range 12 Additional Mass Support 9 Armor Coverage 450 Evasion (%) 62 Targeting Accuracy 5 Offensive Hacking 30 Defensive Hacking 10 Item Schematics ----------------- Hacking Suite | -8/Materials | Scanalyzed Weight Redist. System | -8/Materials | Scanalyzed Imp. Datajack | -8/Materials | Scanalyzed Robot Schematics ------------------ None Fabricated ------------ Hacking Suite | x1 | -7/Factory Hacking Suite | x1 | -7/Factory Alien Tech Used ----------------- None Achievements -------------- Party Time Total Silence root@ Challenges ------------ None Game ------ Seed PropulsionSpliceChip Manual? 0 Play Time 01:43:26 Cumulative 20.7 hours Start 2024.08.23 @ 15:07:53 End 2024.08.24 @ 15:47:06 Sessions 5 Manual Loads 0 Difficulty Rogue Special Mode None Game No. 15 Rogue 15 Adventurer 0 Explorer 0 Win Type - Total 0 Types 0/0/0/0/0/0/0/0/0 Lore% 4 Gallery% 18 Achievement% 18 Wizard Run 0 Options --------- Layout 1 ASCII 0 Keyboard 0 Movement Mouse Keybinds 0 Fullscreen 1 Font 24/Smallcaps Map View 50x35 Zoom Use 0% Tactical HUD 1 Map Filters NONE Filters NONE Steam 1 RUN: 71c7836b-6310-4931-895f-838d24b068c2